fUST/lending_fUST_20250424
["ID","MTS","AMOUNT","RATE_DAILY","PERIOD"]
[358870022,1745500243799,-151.0,0.00019452,2]
[358870023,1745500243808,-151.0,0.00019452,2]
[358870024,1745500243817,-508.61607379,0.00019452,2]
[358870025,1745500243826,-500.0,0.00019452,2]
[358870026,1745500243835,-500.0,0.00019452,2]
[358870027,1745500243845,-503.04762056,0.00019452,2]
[358870028,1745500243855,-500.0,0.00019452,2]
[358870029,1745500243864,-514.3,0.00019452,2]
[358870030,1745500243874,-500.0,0.00019452,2]
[358870031,1745500243883,-865.94,0.00019452,2]
[358870032,1745500243893,-500.0,0.00019452,2]
[358870033,1745500243903,-500.0,0.00019452,2]
[358870034,1745500243913,-500.0,0.00019452,2]
[358870035,1745500243922,-501.96396097,0.00019452,2]
[358870036,1745500243935,-33.30603903,0.00019452,2]
[358870037,1745500243946,-573.81,0.00019452,2]
[358870038,1745500243956,-500.0,0.00019452,2]
[358870039,1745500243966,-588.54915074,0.00019452,2]
[358870040,1745500243976,-500.0,0.00019452,2]
[358870041,1745500243986,-500.0,0.00019452,2]
[358870042,1745500243995,-606.11,0.00019452,2]
[358870044,1745500244005,-500.0,0.00019452,2]
[358870045,1745500244014,-500.0,0.00019452,2]
[358870046,1745500244024,-618.37,0.00019452,2]
[358870048,1745500244034,-500.0,0.00019452,2]
[358870049,1745500244044,-2820.76,0.00019452,2]
[358870050,1745500244054,-500.0,0.00019452,2]
[358870053,1745500244063,-829.58,0.00019452,2]
[358870055,1745500244073,-500.0,0.00019452,2]
[358870057,1745500244083,-151.0,0.00019452,2]
[358870059,1745500244093,-1565.71,0.00019452,2]
[358870061,1745500244102,-500.0,0.00019452,2]
[358870063,1745500244112,-151.0,0.00019452,2]
[358870066,1745500244121,-193.635612,0.00019452,2]
[358870069,1745500244131,-751.6,0.00019452,2]
[358870072,1745500244140,-500.0,0.00019452,2]
[358870075,1745500244149,-716.7,0.00019452,2]
[358870078,1745500244159,-500.0,0.00019452,2]
[358870081,1745500244168,-500.0,0.00019452,2]
[358870084,1745500244178,-500.0,0.00019452,2]
[358870087,1745500244188,-151.0,0.00019452,2]
[358870089,1745500244197,-162.44363,0.00019452,2]
[358870091,1745500244206,-500.0,0.00019452,2]
[358870094,1745500244216,-1033.06,0.00019452,2]
[358870098,1745500244229,-500.0,0.00019452,2]
[358870099,1745500244238,-500.0,0.00019452,2]
[358870101,1745500244248,-2414.64,0.00019452,2]
[358870104,1745500244258,-500.0,0.00019452,2]
[358870108,1745500244270,-500.0,0.00019452,2]
[358870110,1745500244280,-871.18,0.00019452,2]
[358870112,1745500244289,-566.08,0.00019452,2]
[358870114,1745500244299,-510.25166452,0.00019452,2]
[358870116,1745500244308,-1246.78,0.00019452,2]
[358870118,1745500244318,-670.91,0.00019452,2]
[358870121,1745500244327,-500.0,0.00019452,2]
[358870123,1745500244336,-500.0,0.00019452,2]
[358870125,1745500244345,-500.0,0.00019452,2]
[358870127,1745500244355,-698.08,0.00019452,2]
[358870130,1745500244365,-662.01,0.00019452,2]
[358870133,1745500244374,-748.704857,0.00019452,2]
[358870135,1745500244384,-748.704857,0.00019452,2]
[358870137,1745500244393,-504.48898215,0.00019452,2]
[358870139,1745500244403,-748.704857,0.00019452,2]
[358870141,1745500244413,-500.0,0.00019452,2]
[358870143,1745500244422,-500.0,0.00019452,2]
[358870145,1745500244432,-627.15,0.00019452,2]
[358870147,1745500244442,-500.0,0.00019452,2]
[358870149,1745500244451,-500.0,0.00019452,2]
[358870151,1745500244460,-500.0,0.00019452,2]
[358870153,1745500244470,-500.0,0.00019452,2]
[358870155,1745500244481,-500.0,0.00019452,2]
[358870157,1745500244490,-1166.44,0.00019452,2]
[358870158,1745500244499,-1212.64,0.00019452,2]
[358870160,1745500244509,-769.18,0.00019452,2]
[358870162,1745500244518,-500.0,0.00019452,2]
[358870164,1745500244528,-500.0,0.00019452,2]
[358870166,1745500244537,-500.0,0.00019452,2]
[358870168,1745500244547,-1531.37,0.00019452,2]
[358870170,1745500244556,-532.31,0.00019452,2]
[358870172,1745500244566,-500.0,0.00019452,2]
[358870174,1745500244576,-623.33,0.00019452,2]
[358870176,1745500244586,-500.0,0.00019452,2]
[358870178,1745500244595,-500.0,0.00019452,2]
[358870180,1745500244604,-1089.07,0.00019452,2]
[358870182,1745500244614,-500.0,0.00019452,2]
[358870184,1745500244624,-500.0,0.00019452,2]
[358870186,1745500244634,-2985.38,0.00019452,2]
[358870188,1745500244643,-707.47,0.00019452,2]
[358870190,1745500244653,-500.0,0.00019452,2]
[358870192,1745500244662,-500.0,0.00019452,2]
[358870193,1745500244672,-1230.93,0.00019452,2]
[358870195,1745500244682,-500.0,0.00019452,2]
[358870198,1745500244693,-500.0,0.00019452,2]
[358870199,1745500244703,-500.0,0.00019452,2]
[358870201,1745500244713,-500.0,0.00019452,2]
[358870203,1745500244723,-795.79,0.00019452,2]
[358870205,1745500244733,-500.0,0.00019452,2]
[358870207,1745500244742,-883.9,0.00019452,2]
[358870209,1745500244752,-500.0,0.00019452,2]
[358870211,1745500244761,-1132.24,0.00019452,2]
[358870213,1745500244772,-327.04652655,0.00019452,2]
[358870215,1745500244782,-502.4122346,0.00019452,2]
[358870217,1745500244791,-500.0,0.00019452,2]
[358870219,1745500244801,-742.51,0.00019452,2]
[358870221,1745500244811,-694.98,0.00019452,2]
[358870223,1745500244821,-500.0,0.00019452,2]
[358870225,1745500244830,-1711.98,0.00019452,2]
[358870227,1745500244839,-1033.91,0.00019452,2]
[358870230,1745500244848,-500.0,0.00019452,2]
[358870233,1745500244858,-500.0,0.00019452,2]
[358870236,1745500244867,-500.0,0.00019452,2]
[358870238,1745500244876,-500.0,0.00019452,2]
[358870240,1745500244886,-700.79,0.00019452,2]
[358870243,1745500244895,-500.0,0.00019452,2]
[358870245,1745500244905,-500.0,0.00019452,2]
[358870247,1745500244914,-682.07,0.00019452,2]
[358870249,1745500244924,-500.0,0.00019452,2]
[358870251,1745500244935,-500.0,0.00019452,2]
[358870252,1745500244945,-500.0,0.00019452,2]
[358870254,1745500244954,-543.76,0.00019452,2]
[358870256,1745500244964,-439.08759919,0.00019452,2]
[358870258,1745500244975,-500.0,0.00019452,2]
[358870260,1745500244984,-500.0,0.00019452,2]
[358870262,1745500244994,-500.0,0.00019452,2]
[358870264,1745500245003,-500.0,0.00019452,2]
[358870266,1745500245013,-820.53,0.00019452,2]
[358870268,1745500245023,-500.0,0.00019452,2]
[358870270,1745500245032,-1765.51,0.00019452,2]
[358870272,1745500245041,-500.0,0.00019452,2]
[358870274,1745500245051,-607.65,0.00019452,2]
[358870276,1745500245060,-1342.34,0.00019452,2]
[358870278,1745500245069,-502.71449283,0.00019452,2]
[358870279,1745500245079,-191.77239508,0.00019452,2]
[358870281,1745500245088,-932.91,0.00019452,2]
[358870283,1745500245097,-500.0,0.00019452,2]
[358870285,1745500245107,-500.0,0.00019452,2]
[358870287,1745500245116,-500.0,0.00019452,2]
[358870289,1745500245125,-424.80290577,0.00019452,2]
[358870291,1745500245135,-516.36,0.00019452,2]
[358870293,1745500245144,-500.0,0.00019452,2]
[358870295,1745500245154,-1021.71,0.00019452,2]
[358870297,1745500245163,-502.1,0.00019452,2]
[358870299,1745500245172,-500.0,0.00019452,2]
[358870304,1745500245222,-500.0,0.00019452,2]
[358870306,1745500245231,-6345.38,0.00019452,2]
[358870308,1745500245240,-500.0,0.00019452,2]
[358870310,1745500245249,-572.54,0.00019452,2]
[358870312,1745500245258,-854.32,0.00019452,2]
[358870314,1745500245269,-500.0,0.00019452,2]
[358870316,1745500245278,-3044.58,0.00019452,2]
[358870318,1745500245287,-1631.32,0.00019452,2]
[358870320,1745500245297,-3954.18,0.00019452,2]
[358870322,1745500245308,-500.0,0.00019452,2]
[358870324,1745500245319,-1397.45,0.00019452,2]
[358870326,1745500245328,-500.0,0.00019452,2]
[358870328,1745500245337,-534.96,0.00019452,2]
[358870329,1745500245346,-1104.15,0.00019452,2]
[358870332,1745500245355,-842.51,0.00019452,2]
[358870334,1745500245365,-534.65,0.00019452,2]
[358870337,1745500245374,-500.0,0.00019452,2]
[358870340,1745500245383,-1104.1,0.00019452,2]
[358870342,1745500245392,-790.59,0.00019452,2]
[358870345,1745500245402,-1061.56,0.00019452,2]
[358870347,1745500245411,-3837.3,0.00019452,2]
[358870350,1745500245420,-500.0,0.00019452,2]
[358870352,1745500245429,-500.0,0.00019452,2]
[358870355,1745500245438,-500.0,0.00019452,2]
[358870358,1745500245447,-1611.32,0.00019452,2]
[358870361,1745500245456,-849.04,0.00019452,2]
[358870363,1745500245466,-500.0,0.00019452,2]
[358870365,1745500245475,-164.16792648,0.00019452,2]
[358870367,1745500245484,-500.0,0.00019452,2]
[358870369,1745500245493,-500.0,0.00019452,2]
[358870370,1745500245502,-500.0,0.00019452,2]
[358870372,1745500245511,-500.0,0.00019452,2]
[358870374,1745500245520,-601.39,0.00019452,2]
[358870376,1745500245529,-1322.46,0.00019452,2]
[358870378,1745500245538,-500.0,0.00019452,2]
[358870380,1745500245548,-500.0,0.00019452,2]
[358870382,1745500245557,-500.0,0.00019452,2]
[358870384,1745500245566,-500.0,0.00019452,2]
[358870386,1745500245575,-500.0,0.00019452,2]
[358870388,1745500245584,-500.0,0.00019452,2]
[358870389,1745500245594,-500.0,0.00019452,2]
[358870391,1745500245604,-500.0,0.00019452,2]
[358870393,1745500245613,-500.0,0.00019452,2]
[358870395,1745500245622,-1089.28,0.00019452,2]
[358870397,1745500245631,-500.0,0.00019452,2]
[358870399,1745500245640,-1359.48,0.00019452,2]
[358870401,1745500245650,-615.66,0.00019452,2]
[358870403,1745500245659,-543.44,0.00019452,2]
[358870405,1745500245669,-743.02,0.00019452,2]
[358870407,1745500245679,-968.05,0.00019452,2]
[358870409,1745500245688,-500.0,0.00019452,2]
[358870410,1745500245697,-500.0,0.00019452,2]
[358870412,1745500245707,-500.0,0.00019452,2]
[358870414,1745500245716,-796.33,0.00019452,2]
[358870416,1745500245725,-500.0,0.00019452,2]
[358870418,1745500245734,-5572.45,0.00019452,2]
[358870420,1745500245743,-987.73,0.00019452,2]
[358870422,1745500245752,-4553.6,0.00019452,2]
[358870424,1745500245761,-500.0,0.00019452,2]
[358870426,1745500245770,-4117.4,0.00019452,2]
[358870429,1745500245779,-884.2,0.00019452,2]
[358870430,1745500245789,-539.06,0.00019452,2]
[358870432,1745500245799,-500.0,0.00019452,2]
[358870434,1745500245808,-192.550759,0.00019452,2]
[358870436,1745500245817,-500.0,0.00019452,2]
[358870437,1745500245826,-500.0,0.00019452,2]
[358870439,1745500245836,-500.0,0.00019452,2]
[358870441,1745500245846,-1338.62,0.00019452,2]
[358870443,1745500245855,-500.0,0.00019452,2]
[358870445,1745500245863,-500.0,0.00019452,2]
[358870447,1745500245873,-270.79524406,0.00019452,2]
[358870449,1745500245883,-500.0,0.00019452,2]
[358870451,1745500245892,-909.83,0.00019452,2]
[358870453,1745500245901,-4107.91,0.00019452,2]
[358870454,1745500245910,-500.0,0.00019452,2]
[358870456,1745500245919,-500.0,0.00019452,2]
[358870458,1745500245929,-4017.74,0.00019452,2]
[358870460,1745500245938,-500.0,0.00019452,2]
[358870462,1745500245948,-8750.1,0.00019452,2]
[358870464,1745500245957,-500.0,0.00019452,2]
[358870466,1745500245967,-500.0,0.00019452,2]
[358870468,1745500245977,-1101.84,0.00019452,2]
[358870470,1745500245988,-500.0,0.00019452,2]
[358870472,1745500245997,-687.61,0.00019452,2]
[358870474,1745500246007,-3320.64,0.00019452,2]
[358870476,1745500246017,-974.44,0.00019452,2]
[358870477,1745500246026,-796.92,0.00019452,2]
[358870479,1745500246035,-865.64,0.00019452,2]
[358870481,1745500246045,-377.59875643,0.00019452,2]
[358870483,1745500246054,-500.0,0.00019452,2]
[358870485,1745500246064,-931.38,0.00019452,2]
[358870487,1745500246074,-500.0,0.00019452,2]
[358870489,1745500246084,-500.0,0.00019452,2]
[358870491,1745500246094,-519.09,0.00019452,2]
[358870493,1745500246103,-612.13,0.00019452,2]
[358870495,1745500246113,-500.0,0.00019452,2]
[358870497,1745500246122,-629.71255057,0.00019452,2]
[358870498,1745500246131,-4260.35,0.00019452,2]
[358870500,1745500246141,-500.0,0.00019452,2]
[358870502,1745500246150,-965.66,0.00019452,2]
[358870504,1745500246160,-500.0,0.00019452,2]
[358870506,1745500246169,-785.28,0.00019452,2]
[358870508,1745500246179,-500.0,0.00019452,2]
[358870510,1745500246189,-738.1,0.00019452,2]
[358870512,1745500246198,-500.0,0.00019452,2]
[358870514,1745500246208,-500.0,0.00019452,2]
[358870516,1745500246219,-500.0,0.00019452,2]
[358870518,1745500246230,-500.0,0.00019452,2]
[358870520,1745500246240,-4199.51,0.00019452,2]
[358870522,1745500246249,-500.0,0.00019452,2]
[358870523,1745500246259,-500.0,0.00019473,2]
[358870525,1745500246268,-931.4852792,0.00019528,2]
[358870527,1745500246277,-151.0,0.00019725,2]
[358870529,1745500246288,-151.0,0.00019726,2]
[358870531,1745500246297,-151.0,0.00019726,2]
[358870533,1745500246308,-151.0,0.00019726,2]
[358870535,1745500246318,-181.23524,0.00019726,2]
[358870537,1745500246327,-151.0,0.00019726,2]
[358870538,1745500246337,-151.0,0.00019726,2]
[358870540,1745500246346,-509.38929486,0.00019726,2]
[358870542,1745500246356,-500.0,0.00019726,2]
[358870544,1745500246366,-500.0,0.00019726,2]
[358870546,1745500246376,-500.0,0.00019726,2]
[358870548,1745500246386,-500.0,0.00019726,2]
[358870550,1745500246395,-500.0,0.00019726,2]
[358870552,1745500246405,-1216.96,0.00019726,2]
[358870554,1745500246415,-500.0,0.00019726,2]
[358870556,1745500246424,-599.37,0.00019726,2]
[358870558,1745500246433,-507.93497376,0.00019726,2]
[358870560,1745500246443,-591.60694239,0.00019726,2]
[358870562,1745500246453,-151.0,0.00019726,2]
[358870563,1745500246463,-151.0,0.00019726,2]
[358870565,1745500246473,-500.0,0.00019726,2]
[358870567,1745500246482,-500.0,0.00019726,2]
[358870569,1745500246492,-500.0,0.00019726,2]
[358870571,1745500246502,-514.3,0.00019726,2]
[358870573,1745500246511,-500.0,0.00019726,2]
[358870575,1745500246521,-865.94,0.00019726,2]
[358870577,1745500246531,-500.0,0.00019726,2]
[358870578,1745500246540,-500.0,0.00019726,2]
[358870580,1745500246550,-535.27,0.00019726,2]
[358870582,1745500246560,-573.81,0.00019726,2]
[358870584,1745500246569,-500.0,0.00019726,2]
[358870586,1745500246578,-199.826802,0.00019726,2]
[358870588,1745500246587,-500.0,0.00019726,2]
[358870590,1745500246598,-500.0,0.00019726,2]
[358870592,1745500246608,-606.11,0.00019726,2]
[358870594,1745500246618,-500.0,0.00019726,2]
[358870596,1745500246627,-618.37,0.00019726,2]
[358870597,1745500246637,-2820.76,0.00019726,2]
[358870599,1745500246647,-500.0,0.00019726,2]
[358870601,1745500246657,-829.58,0.00019726,2]
[358870603,1745500246666,-1565.71,0.00019726,2]
[358870605,1745500246676,-500.0,0.00019726,2]
[358870607,1745500246686,-751.6,0.00019726,2]
[358870608,1745500246695,-500.0,0.00019726,2]
[358870610,1745500246705,-716.7,0.00019726,2]
[358870612,1745500246715,-1033.06,0.00019726,2]
[358870614,1745500246725,-500.0,0.00019726,2]
[358870616,1745500246735,-2414.64,0.00019726,2]
[358870618,1745500246745,-500.0,0.00019726,2]
[358870620,1745500246755,-871.18,0.00019726,2]
[358870622,1745500246764,-566.08,0.00019726,2]
[358870623,1745500246774,-1246.78,0.00019726,2]
[358870625,1745500246783,-670.91,0.00019726,2]
[358870627,1745500246793,-500.0,0.00019726,2]
[358870629,1745500246804,-368.00701319,0.00019726,2]
[358870632,1745500246821,-131.99298681,0.00019726,2]
[358870634,1745500246830,-500.0,0.00019726,2]
[358870635,1745500246840,-748.704857,0.00019726,2]
[358870637,1745500246850,-698.08,0.00019726,2]
[358870639,1745500246859,-662.01,0.00019726,2]
[358870641,1745500246869,-748.704857,0.00019726,2]
[358870643,1745500246879,-748.704857,0.00019726,2]
[358870645,1745500246890,-500.0,0.00019726,2]
[358870647,1745500246901,-627.15,0.00019726,2]
[358870649,1745500246911,-6698.717671,0.00019726,2]
[358870651,1745500246920,-6698.717671,0.00019726,2]
[358870653,1745500246930,-500.0,0.00019726,2]
[358870655,1745500246939,-500.0,0.00019726,2]
[358870656,1745500246950,-500.0,0.00019726,2]
[358870658,1745500246960,-500.0,0.00019726,2]
[358870660,1745500246969,-500.0,0.00019726,2]
[358870662,1745500246979,-1166.44,0.00019726,2]
[358870664,1745500246989,-1212.64,0.00019726,2]
[358870666,1745500246998,-769.18,0.00019726,2]
[358870668,1745500247008,-500.0,0.00019726,2]
[358870670,1745500247018,-500.0,0.00019726,2]
[358870672,1745500247027,-1531.37,0.00019726,2]
[358870674,1745500247037,-532.31,0.00019726,2]
[358870675,1745500247047,-500.0,0.00019726,2]
[358870677,1745500247057,-623.33,0.00019726,2]
[358870679,1745500247067,-500.0,0.00019726,2]
[358870681,1745500247077,-1089.07,0.00019726,2]
[358870683,1745500247086,-500.0,0.00019726,2]
[358870685,1745500247096,-500.0,0.00019726,2]
[358870687,1745500247106,-2985.38,0.00019726,2]
[358870689,1745500247115,-707.47,0.00019726,2]
[358870690,1745500247125,-500.0,0.00019726,2]
[358870692,1745500247134,-231.56783015,0.00019726,2]
[358870693,1745500247144,-1230.93,0.00019726,2]
[358870695,1745500247154,-500.0,0.00019726,2]
[358870697,1745500247163,-500.0,0.00019726,2]
[358870699,1745500247173,-500.0,0.00019726,2]
[358870701,1745500247183,-795.79,0.00019726,2]
[358870703,1745500247194,-883.9,0.00019726,2]
[358870705,1745500247204,-500.0,0.00019726,2]
[358870706,1745500247214,-1132.24,0.00019726,2]
[358870708,1745500247229,-500.0,0.00019726,2]
[358870710,1745500247239,-742.51,0.00019726,2]
[358870712,1745500247249,-694.98,0.00019726,2]
[358870714,1745500247260,-500.0,0.00019726,2]
[358870716,1745500247270,-1711.98,0.00019726,2]
[358870718,1745500247280,-1033.91,0.00019726,2]
[358870720,1745500247290,-500.0,0.00019726,2]
[358870722,1745500247304,-222.90010636,0.00019726,2]
[358870724,1745500247314,-500.0,0.00019726,2]
[358870726,1745500247324,-500.0,0.00019726,2]
[358870728,1745500247334,-700.79,0.00019726,2]
[358870730,1745500247344,-500.0,0.00019726,2]
[358870731,1745500247355,-682.07,0.00019726,2]
[358870732,1745500247365,-630.04787997,0.00019726,2]
[358870733,1745500247375,-500.0,0.00019726,2]
[358870734,1745500247387,-500.0,0.00019726,2]
[358870735,1745500247396,-543.76,0.00019726,2]
[358870736,1745500247407,-500.0,0.00019726,2]
[358870737,1745500247417,-500.0,0.00019726,2]
[358870738,1745500247427,-500.0,0.00019726,2]
[358870739,1745500247438,-820.53,0.00019726,2]
[358870740,1745500247449,-500.0,0.00019726,2]
[358870741,1745500247459,-1765.51,0.00019726,2]
[358870742,1745500247468,-500.0,0.00019726,2]
[358870743,1745500247479,-607.65,0.00019726,2]
[358870744,1745500247489,-1342.34,0.00019726,2]
[358870745,1745500247499,-932.91,0.00019726,2]
[358870746,1745500247509,-500.0,0.00019726,2]
[358870747,1745500247518,-500.0,0.00019726,2]
[358870748,1745500247528,-500.0,0.00019726,2]
[358870749,1745500247539,-516.36,0.00019726,2]
[358870750,1745500247549,-500.0,0.00019726,2]
[358870751,1745500247559,-1021.71,0.00019726,2]
[358870752,1745500247569,-502.1,0.00019726,2]
[358870753,1745500247579,-500.0,0.00019726,2]
[358870754,1745500247590,-500.0,0.00019726,2]
[358870755,1745500247600,-6345.38,0.00019726,2]
[358870756,1745500247610,-500.0,0.00019726,2]
[358870757,1745500247621,-572.54,0.00019726,2]
[358870758,1745500247631,-854.32,0.00019726,2]
[358870759,1745500247641,-500.0,0.00019726,2]
[358870760,1745500247651,-3044.58,0.00019726,2]
[358870761,1745500247660,-1260.32087375,0.00019726,2]
[358870775,1745500247852,-370.99912625,0.00019726,2]
[358870777,1745500247863,-3954.18,0.00019726,2]
[358870779,1745500247873,-500.0,0.00019726,2]
[358870781,1745500247883,-1397.45,0.00019726,2]
[358870782,1745500247893,-500.0,0.00019726,2]
[358870784,1745500247903,-534.96,0.00019726,2]
[358870786,1745500247913,-470.03603539,0.00019726,2]
[358870788,1745500247926,-634.11396461,0.00019726,2]
[358870790,1745500247936,-842.51,0.00019726,2]
[358870792,1745500247946,-477.46041791,0.00019726,2]
[358870795,1745500247958,-57.18958209,0.00019726,2]
[358870797,1745500247968,-405.6473038,0.00019726,2]
[358870839,1745500248414,-318.63111744,0.00019452,2]
[358870980,1745500347003,293.54380792,0.00017139,2]
[358870998,1745501231097,-300.0,0.00017078,2]
[358870999,1745501231119,-187.0,0.00017079,2]
[358871000,1745501231141,-343.67120179,0.00017079,2]
[358871001,1745501231170,-500.0,0.00017079,2]
[358871002,1745501231191,-500.0,0.00017079,2]
[358871003,1745501231213,-500.0,0.00017079,2]
[358871004,1745501231234,-255.50884703,0.00017079,2]
[358871014,1745501277643,-498.42466018,0.00016,2]
[358871015,1745501280627,-160.0,0.00016,2]
[358871016,1745501284824,-184.25520374,0.00016,2]
[358871017,1745501287320,-204.85679099,0.00016,2]
[358871019,1745501298737,3104.71950244,0.000125,2]
[358871024,1745501319143,625.36855432,9e-05,2]
[358871026,1745501322451,573.28685489,0.000149,2]
[358871027,1745501322734,1000.0,0.0001,2]
[358871029,1745501326402,1736.1503438,0.00015,2]
[358871067,1745501432412,-209.919591,0.00016974,2]
[358871068,1745501432421,-300.0,0.00017077,2]
[358871069,1745501432431,-352.0,0.00017077,2]
[358871070,1745501432441,-284.46998396,0.00017078,2]
[358871071,1745501432450,-318.93286762,0.00017078,2]
[358871072,1745501432460,-500.0,0.00017078,2]
[358871073,1745501432469,-500.0,0.00017078,2]
[358871074,1745501432479,-500.0,0.00017078,2]
[358871075,1745501432488,-500.0,0.00017078,2]
[358871076,1745501432497,-452.1334345,0.00017078,2]
[358871079,1745501432509,-47.8665655,0.00017078,2]
[358871081,1745501432519,-500.0,0.00017078,2]
[358871082,1745501432528,-500.0,0.00017078,2]
[358871084,1745501432537,-244.49115297,0.00017078,2]
[358871086,1745501432547,-500.0,0.00017078,2]
[358871088,1745501432558,-494.56335773,0.00017078,2]
[358871090,1745501432568,-547.0506949,0.00017084,2]
[358871092,1745501432577,-123.66111626,0.00017139,2]
[358871107,1745501432714,-287.35333876,0.00017139,2]
[358871109,1745501432726,-295.44173706,0.00017139,2]
[358871111,1745501432737,-11535.8412988,0.00017399,2]
[358871112,1745501432748,-525.84125274,0.000175,4]
[358871113,1745501432758,-825.64488063,0.000176,2]
[358871114,1745501432767,-740.4208137,0.00017791,2]
[358871115,1745501432777,-483.94196165,0.00017808,2]
[358871117,1745501432787,-420.0,0.0001865,2]
[358871119,1745501432796,-201.22906577,0.000189,2]
[358871120,1745501432813,-2742.78184642,0.000189,2]
[358871122,1745501432823,-208.64182819,0.000189,2]
[358871124,1745501432832,-5650.94529109,0.00018978,2]
[358871149,1745501438356,-4539.634302,0.00018978,2]
[358871150,1745501438368,-136664.92675603,0.00018978,2]
[358871151,1745501438377,-3008.86,0.00019,2]
[358871152,1745501438387,-215.0738,0.00019166,2]
[358871153,1745501438396,-500.0,0.00019173,2]
[358871154,1745501438405,-500.0,0.00019173,2]
[358871155,1745501438414,-511.13838017,0.00019173,2]
[358871156,1745501438423,-500.0,0.00019173,2]
[358871157,1745501438432,-500.0,0.00019173,2]
[358871158,1745501438441,-511.29337322,0.00019173,2]
[358871159,1745501438451,-500.0,0.00019173,2]
[358871160,1745501438460,-500.0,0.00019173,2]
[358871161,1745501438469,-500.0,0.00019178,2]
[358871162,1745501438478,-500.0,0.00019178,2]
[358871163,1745501438488,-500.0,0.00019178,2]
[358871164,1745501438497,-502.74141632,0.00019178,2]
[358871165,1745501438505,-500.0,0.00019178,2]
[358871166,1745501438514,-506.15298993,0.00019178,2]
[358871167,1745501438524,-500.0,0.00019178,2]
[358871168,1745501438533,-505.19616564,0.00019178,2]
[358871169,1745501438542,-500.0,0.00019178,2]
[358871170,1745501438555,-185.65017959,0.00019178,2]
[358871171,1745501438565,-500.0,0.00019178,2]
[358871172,1745501438574,-500.0,0.00019178,2]
[358871173,1745501438583,-500.0,0.00019178,2]
[358871175,1745501438592,-946.97,0.00019178,2]
[358871177,1745501438601,-506.67288113,0.00019178,2]
[358871179,1745501438611,-399.0784713,0.00019178,2]
[358871181,1745501438620,-509.72264243,0.00019178,2]
[358871183,1745501438629,-500.0,0.00019178,2]
[358871185,1745501438638,-505.18507414,0.00019178,2]
[358871187,1745501438648,-500.0,0.00019178,2]
[358871189,1745501438658,-500.0,0.00019178,2]
[358871191,1745501438669,-500.0,0.00019178,2]
[358871193,1745501438679,-500.0,0.00019178,2]
[358871195,1745501438688,-501.62148324,0.00019178,2]
[358871197,1745501438701,-504.13450546,0.00019178,2]
[358871199,1745501438711,-500.0,0.00019178,2]
[358871201,1745501438721,-500.0,0.00019178,2]
[358871203,1745501438731,-606.84,0.00019178,2]
[358871205,1745501438740,-500.0,0.00019178,2]
[358871207,1745501438750,-500.0,0.00019178,2]
[358871209,1745501438759,-1111.58,0.00019178,2]
[358871210,1745501438768,-602.3823,0.00019178,2]
[358871212,1745501438778,-500.0,0.00019178,2]
[358871214,1745501438788,-500.0,0.00019178,2]